bitfinex-derivatives/quotes_BTCF0:USTF0_20250416
["timestamp","ask_amount","ask_price","bid_price","bid_amount"]
[1744787103094,0.22156252,83630.0,83629.0,0.16945924]
[1744787103489,0.22156252,83630.0,83629.0,0.01907394]
[1744787104384,0.22156252,83630.0,83629.0,0.13865924]
[1744787104587,0.22156252,83630.0,83629.0,0.01]
[1744787105085,0.22156252,83630.0,83629.0,0.1295853]
[1744787105785,0.22156252,83630.0,83629.0,0.01]
[1744787106899,0.94316252,83630.0,83629.0,0.01]
[1744787107991,0.94316252,83630.0,83629.0,0.1295853]
[1744787109903,0.94316252,83630.0,83629.0,0.01]
[1744787112788,0.0597949,83626.0,83620.0,0.01190919]
[1744787113001,0.82357872,83630.0,83614.0,0.0328]
[1744787113002,0.3608,83621.0,83614.0,0.0328]
[1744787113298,0.1196053,83615.0,83614.0,0.04194403]
[1744787113798,0.1843053,83615.0,83614.0,0.00922403]
[1744787114000,0.19450402,83615.0,83614.0,0.00922403]
[1744787114400,0.19550402,83615.0,83614.0,0.13983073]
[1744787114699,0.19550402,83615.0,83614.0,0.02022403]
[1744787114901,0.19550402,83615.0,83614.0,0.13983073]
[1744787115200,0.19558402,83615.0,83614.0,0.17255073]
[1744787115393,0.19558402,83615.0,83614.0,0.20473073]
[1744787116396,0.19658402,83615.0,83614.0,0.21073073]
[1744787117898,0.19658402,83615.0,83614.0,0.05902403]
[1744787118095,0.19658402,83615.0,83614.0,0.02622403]
[1744787120103,0.1863853,83615.0,83614.0,0.02622403]
[1744787121409,0.0598034,83614.0,83610.0,1e-08]
[1744787121600,0.1196167,83607.0,83606.0,0.1196174]
[1744787121800,0.12860932,83607.0,83606.0,0.16026855]
[1744787122000,0.16130932,83607.0,83606.0,0.19196855]
[1744787122504,0.16130932,83607.0,83606.0,0.07235115]
[1744787122808,0.1523167,83607.0,83606.0,0.07235115]
[1744787123011,0.1837167,83607.0,83606.0,0.04065115]
[1744787123716,0.1523167,83607.0,83606.0,0.04065115]
[1744787124009,0.1553167,83607.0,83606.0,0.05965115]
[1744787124210,0.1553167,83607.0,83606.0,0.09175115]
[1744787124410,0.1553167,83607.0,83606.0,0.21136935]
[1744787125108,0.1226167,83607.0,83606.0,0.21136935]
[1744787130205,0.1527167,83607.0,83606.0,0.21136935]
[1744787133219,0.1226167,83607.0,83606.0,0.21136935]
[1744787135515,0.1533167,83607.0,83606.0,0.21136935]
[1744787142021,0.1854167,83607.0,83606.0,0.21136935]
[1744787148329,0.1854167,83607.0,83606.0,0.17926935]
[1744787148534,0.2169167,83607.0,83606.0,0.17926935]
[1744787149325,0.2169167,83607.0,83606.0,0.14776935]
[1744787150732,0.2169167,83607.0,83606.0,0.17916935]
[1744787161944,0.2169167,83607.0,83606.0,0.02815115]
[1744787162131,0.2169167,83607.0,83606.0,0.14776935]
[1744787162331,0.2169167,83607.0,83606.0,0.02815115]
[1744787163032,0.22611216,83607.0,83606.0,0.02815115]
[1744787164229,0.22611216,83607.0,83606.0,0.019]
[1744787164437,0.22611216,83607.0,83606.0,0.01908]
[1744787164634,0.22611216,83607.0,83606.0,0.019]
[1744787164834,0.22611216,83607.0,83606.0,0.01908]
[1744787167142,0.22611216,83607.0,83606.0,0.1386982]
[1744787167343,0.19461216,83607.0,83606.0,0.1705982]
[1744787167531,0.19461216,83607.0,83606.0,0.2012982]
[1744787169345,0.19461216,83607.0,83606.0,0.1705982]
[1744787170038,0.19461216,83607.0,83606.0,0.1386982]
[1744787170238,0.19461216,83607.0,83606.0,0.01908]
[1744787171034,0.19461216,83607.0,83606.0,0.05218]
[1744787172441,0.19461216,83607.0,83606.0,0.01908]
[1744787172637,0.19461216,83607.0,83606.0,0.019]
[1744787172951,0.1196239,83602.0,83601.0,0.00514345]
[1744787173250,0.4804239,83602.0,83601.0,0.00514345]
[1744787173548,0.58561936,83602.0,83601.0,0.00522345]
[1744787174046,0.58861936,83602.0,83601.0,0.01922345]
[1744787174449,0.58861936,83602.0,83601.0,0.02829085]
[1744787179248,0.58861936,83602.0,83601.0,0.01922345]
[1744787179752,0.58861936,83602.0,83601.0,0.01914345]
[1744787180050,0.58861936,83602.0,83601.0,0.01922345]
[1744787187258,0.5794239,83602.0,83601.0,0.04952345]
[1744787187560,0.5470239,83602.0,83601.0,0.04952345]
[1744787188058,0.55647844,83602.0,83601.0,0.20064875]
[1744787188451,0.55647844,83602.0,83601.0,0.08102345]
[1744787188857,0.55647844,83602.0,83601.0,0.20064875]
[1744787189053,0.55647844,83602.0,83601.0,0.08102345]
[1744787197462,0.16437844,83602.0,83601.0,0.08102345]
[1744787197653,0.52517844,83602.0,83601.0,0.08102345]
[1744787197856,0.52517844,83602.0,83601.0,0.20064875]
[1744787198461,0.13207844,83602.0,83601.0,0.20064875]
[1744787198958,0.01245454,83602.0,83601.0,0.20064875]
[1744787199468,0.13207844,83602.0,83601.0,0.20064875]
[1744787200066,0.1226239,83602.0,83601.0,0.20064875]
[1744787209376,0.003,83602.0,83601.0,0.20064875]
[1744787209673,0.1226239,83602.0,83601.0,0.20064875]
[1744787210975,0.1533239,83602.0,83601.0,0.20064875]
[1744787214478,0.1835239,83602.0,83601.0,0.20064875]
[1744787218780,0.1835239,83602.0,83601.0,0.16914875]
[1744787223685,0.1835239,83602.0,83601.0,0.20154875]
[1744787224283,0.0639,83602.0,83601.0,0.20154875]
[1744787224686,0.2096244,83608.0,83606.0,0.059809]
[1744787224881,0.2096244,83608.0,83607.0,0.1833167]
[1744787225082,0.5704244,83608.0,83607.0,0.0313]
[1744787225881,0.5714244,83608.0,83607.0,0.0313]
[1744787226285,0.5734244,83608.0,83607.0,0.1519167]
[1744787227282,0.5734244,83608.0,83607.0,0.1206167]
[1744787228082,0.5734244,83608.0,83607.0,0.001]
[1744787228275,0.6377244,83608.0,83607.0,0.001]
[1744787228878,0.6377244,83608.0,83607.0,0.00108]
[1744787234197,0.9985244,83608.0,83607.0,0.00108]
[1744787238689,0.2769244,83608.0,83607.0,0.00108]
[1744787238994,0.9985244,83608.0,83607.0,0.00108]
[1744787240998,0.2769244,83608.0,83607.0,0.00108]
[1744787241199,0.9985244,83608.0,83607.0,0.00108]
[1744787243296,0.9985244,83608.0,83607.0,0.001]
[1744787243484,0.9985244,83608.0,83607.0,0.00108]
[1744787250397,0.9358244,83608.0,83607.0,0.00108]
[1744787251710,0.9358244,83608.0,83607.0,0.03388]
[1744787253099,0.5432244,83608.0,83607.0,0.1534967]
[1744787253303,0.5432244,83608.0,83607.0,0.03388]
[1744787254192,0.5432244,83608.0,83607.0,0.06628]
[1744787256187,0.9040244,83608.0,83607.0,0.06628]
[1744787263600,0.1824244,83608.0,83607.0,0.06628]
[1744787263795,0.9040244,83608.0,83607.0,0.06628]
[1744787267696,0.5432244,83608.0,83607.0,0.06628]
[1744787271705,0.9040244,83608.0,83607.0,0.06628]
[1744787275412,0.9360244,83608.0,83607.0,0.06628]
[1744787277612,0.9660244,83608.0,83607.0,0.06628]
[1744787287410,0.97504136,83608.0,83607.0,0.06628]
[1744787288607,0.9660244,83608.0,83607.0,0.06628]
[1744787289011,0.2444244,83608.0,83607.0,0.06628]
[1744787289221,0.9660244,83608.0,83607.0,0.06628]
[1744787291421,0.9660244,83608.0,83607.0,0.03348]
[1744787291721,0.9660244,83608.0,83607.0,0.001]
[1744787291918,0.9660244,83608.0,83607.0,0.00108]
[1744787297026,0.119621,83604.0,83603.0,0.000108]
[1744787297225,0.1196239,83602.0,83601.0,0.00514345]
[1744787297619,0.22048269,83602.0,83601.0,0.00514345]
[1744787298327,0.22248269,83602.0,83601.0,0.00814345]
[1744787298829,0.22248269,83602.0,83601.0,0.04074345]
[1744787300228,0.22348269,83602.0,83601.0,0.04074345]
[1744787306336,0.22348269,83602.0,83601.0,0.07284345]
[1744787308027,0.22348269,83602.0,83601.0,0.19246875]
[1744787308238,0.22348269,83602.0,83601.0,0.07284345]
[1744787308941,0.94508269,83602.0,83601.0,0.07284345]
[1744787310744,0.22348269,83602.0,83601.0,0.07284345]
[1744787310943,0.94508269,83602.0,83601.0,0.07284345]
[1744787317354,0.94508269,83602.0,83601.0,0.04074345]
[1744787319855,0.22348269,83602.0,83601.0,0.04074345]
[1744787320156,0.58428269,83602.0,83601.0,0.04074345]
[1744787320956,0.59814291,83602.0,83601.0,0.04074345]
[1744787322159,0.58428269,83602.0,83601.0,0.04074345]
[1744787322552,0.58428269,83602.0,83601.0,0.07294345]
[1744787323661,0.58428269,83602.0,83601.0,0.04074345]
[1744787323861,0.58428269,83602.0,83601.0,0.04082345]
[1744787327164,0.22348269,83602.0,83601.0,0.04082345]
[1744787327359,0.58428269,83602.0,83601.0,0.04082345]
[1744787327561,0.119631,83597.0,83596.0,0.000108]
[1744787327765,0.1196468,83586.0,83585.0,0.0632]
[1744787328057,0.48960559,83586.0,83585.0,0.1828482]
[1744787329065,0.49160559,83586.0,83585.0,0.1848482]
[1744787330559,0.49260559,83586.0,83585.0,0.1848482]
[1744787330759,0.49260559,83586.0,83585.0,0.22508444]
[1744787332368,0.49260559,83586.0,83585.0,0.10543624]
[1744787332770,0.52490559,83586.0,83585.0,0.10543624]
[1744787333157,0.88570559,83586.0,83585.0,0.0664]
[1744787333357,0.0598291,83578.0,83576.0,0.07856]
[1744787333565,0.5127597,83577.0,83576.0,0.07856]
[1744787333864,0.55321849,83577.0,83576.0,0.07864]
[1744787334058,0.55321849,83577.0,83576.0,0.08752866]
[1744787334258,0.55321849,83577.0,83576.0,0.20718976]
[1744787334464,0.55321849,83577.0,83576.0,0.08752866]
[1744787334660,0.55321849,83577.0,83576.0,0.12862976]
[1744787334867,0.52191849,83577.0,83576.0,0.12862976]
[1744787335062,0.52391849,83577.0,83576.0,0.12862976]
[1744787335257,0.16311849,83577.0,83576.0,0.12862976]
[1744787336259,0.16411849,83577.0,83576.0,0.12862976]
[1744787336461,0.16411849,83577.0,83576.0,0.19232976]
[1744787338170,0.52491849,83577.0,83576.0,0.19232976]
[1744787340875,0.13181849,83577.0,83576.0,0.19232976]
[1744787341575,0.16311849,83577.0,83576.0,0.27088976]
[1744787341778,0.52391849,83577.0,83576.0,0.27088976]
[1744787342775,0.16311849,83577.0,83576.0,0.27088976]
[1744787343276,0.16311849,83577.0,83576.0,0.45088976]
[1744787344574,0.16311849,83577.0,83576.0,0.48368976]
[1744787345071,0.16311849,83577.0,83576.0,0.22512976]
[1744787345572,0.16311849,83577.0,83576.0,0.10546866]
[1744787345763,0.19351849,83577.0,83576.0,0.07236866]
[1744787346166,0.19351849,83577.0,83576.0,0.00888866]
[1744787346367,0.22471849,83577.0,83576.0,8e-05]
[1744787346663,0.1196611,83576.0,83575.0,0.00514505]
[1744787346975,0.12881989,83576.0,83575.0,0.00514505]
[1744787347167,0.19121989,83576.0,83575.0,0.00514505]
[1744787347979,0.55301989,83576.0,83575.0,0.00514505]
[1744787348176,0.55501989,83576.0,83575.0,0.00514505]
[1744787348366,0.55501989,83576.0,83575.0,0.01429271]
[1744787350273,0.55501989,83576.0,83575.0,0.13395521]
[1744787350777,0.16381989,83576.0,83575.0,0.13395521]
[1744787350966,0.16381989,83576.0,83575.0,0.34635521]
[1744787351372,0.16381989,83576.0,83575.0,0.19635521]
[1744787351568,0.52461989,83576.0,83575.0,0.19635521]
[1744787352881,0.55741989,83576.0,83575.0,0.19635521]
[1744787353070,0.55741989,83576.0,83575.0,0.04539271]
[1744787353270,0.55741989,83576.0,83575.0,0.01429271]
[1744787353580,0.58921989,83576.0,83575.0,0.01429271]
[1744787354785,0.58921989,83576.0,83575.0,0.13395521]
[1744787355677,0.58921989,83576.0,83575.0,0.01429271]
[1744787356974,0.58921989,83576.0,83575.0,0.13395521]
[1744787357778,0.55741989,83576.0,83575.0,0.13395521]
[1744787358085,0.52461989,83576.0,83575.0,0.16415521]
[1744787358277,0.16381989,83576.0,83575.0,0.19685521]
[1744787361789,0.52461989,83576.0,83575.0,0.19685521]
[1744787361977,0.52461989,83576.0,83575.0,0.27537521]
[1744787362177,0.55561989,83576.0,83575.0,0.27537521]
[1744787362686,0.55561989,83576.0,83575.0,0.19685521]
[1744787362988,0.55561989,83576.0,83575.0,0.27537521]
[1744787365293,0.19481989,83576.0,83575.0,0.27537521]
[1744787366190,0.16381989,83576.0,83575.0,0.27537521]
[1744787369384,0.04415879,83576.0,83575.0,0.27537521]
[1744787369586,0.16381989,83576.0,83575.0,0.27537521]
[1744787370292,0.1546611,83576.0,83575.0,0.27537521]
[1744787373396,0.1546611,83576.0,83575.0,0.19685521]
[1744787373596,0.1546611,83576.0,83575.0,0.27537521]
[1744787378802,0.1546611,83576.0,83575.0,0.21247521]
[1744787378997,0.2174611,83576.0,83575.0,0.21247521]
[1744787379304,0.2174611,83576.0,83575.0,0.21239521]
[1744787379702,0.2174611,83576.0,83575.0,0.24399521]
[1744787380295,0.1861611,83576.0,83575.0,0.24399521]
[1744787382192,0.1861611,83576.0,83575.0,0.21239521]
[1744787383106,0.1861611,83576.0,83575.0,0.27799521]
[1744787384698,0.1861611,83576.0,83575.0,0.24489521]
[1744787385203,0.1861611,83576.0,83575.0,0.21239521]
[1744787385596,0.1861611,83576.0,83575.0,0.13395521]
[1744787385904,0.1861611,83576.0,83575.0,0.21239521]
[1744787387113,0.19514728,83576.0,83575.0,0.21239521]
[1744787387809,0.1861611,83576.0,83575.0,0.21239521]
[1744787396910,0.1861611,83576.0,83575.0,0.21247521]
[1744787402915,0.1861611,83576.0,83575.0,0.24317521]
[1744787403214,0.1861611,83576.0,83575.0,0.27397521]
[1744787404919,0.1546611,83576.0,83575.0,0.63477521]
[1744787406722,0.035,83576.0,83575.0,0.63477521]
[1744787407021,0.1546611,83576.0,83575.0,0.63477521]
[1744787413924,0.1546611,83576.0,83575.0,0.27397521]
[1744787414126,0.1546611,83576.0,83575.0,0.63477521]
[1744787414423,0.1849611,83576.0,83575.0,0.63477521]
[1744787417424,0.1849611,83576.0,83575.0,0.57327521]
[1744787417625,0.1849611,83576.0,83575.0,0.60347521]
[1744787417833,0.1849611,83576.0,83575.0,0.63557521]
[1744787427441,0.0653,83576.0,83575.0,0.63557521]
[1744787427638,0.1849611,83576.0,83575.0,0.63557521]
[1744787431837,0.1849611,83576.0,83575.0,0.27477521]
[1744787432032,0.1849611,83576.0,83575.0,0.63557521]
[1744787433031,0.1849611,83576.0,83575.0,0.27477521]
[1744787433230,0.1849611,83576.0,83575.0,0.63557521]
[1744787433835,0.0653,83576.0,83575.0,0.63557521]
[1744787434632,0.1849611,83576.0,83575.0,0.63557521]
[1744787434835,0.1849611,83576.0,83575.0,0.64850542]
[1744787435336,0.0653,83576.0,83575.0,0.64850542]
[1744787435537,0.1849611,83576.0,83575.0,0.64850542]
[1744787435740,0.0653,83576.0,83575.0,0.63557521]
[1744787436138,0.1849611,83576.0,83575.0,0.63557521]
[1744787436541,0.1849611,83576.0,83575.0,0.27477521]
[1744787436737,0.1849611,83576.0,83575.0,0.63557521]
[1744787437440,0.1849611,83576.0,83575.0,0.60347521]
[1744787445958,0.1849611,83576.0,83575.0,0.21247521]
[1744787446154,0.2167611,83576.0,83575.0,0.21247521]
[1744787451561,0.1849611,83576.0,83575.0,0.21247521]
[1744787451853,0.1849611,83576.0,83575.0,0.30917521]
[1744787454850,0.1849611,83576.0,83575.0,0.32239295]
[1744787456257,0.0653,83576.0,83575.0,0.32239295]
[1744787456657,0.1196509,83584.0,83583.0,0.179475]
[1744787456856,0.1809509,83584.0,83583.0,0.257795]
[1744787457161,0.0613,83584.0,83583.0,0.257795]
[1744787457749,0.1819496,83584.0,83583.0,0.289295]
[1744787459355,0.1839496,83584.0,83583.0,0.289295]
[1744787459852,0.2161496,83584.0,83583.0,0.289295]
[1744787462663,0.0664,83584.0,83583.0,0.289295]
[1744787462965,0.0598074,83609.0,83601.0,0.1196253]
[1744787462966,0.4804254,83602.0,83601.0,0.1196253]
[1744787463154,0.4804254,83602.0,83601.0,0.1979453]
[1744787463360,0.4804254,83602.0,83601.0,0.2286453]
[1744787464262,0.5122254,83602.0,83601.0,0.2286453]
[1744787464566,0.5142254,83602.0,83601.0,0.2286453]
[1744787466266,0.5462254,83602.0,83601.0,0.1979453]
[1744787466466,0.5762254,83602.0,83601.0,0.1979453]
[1744787466666,0.5762254,83602.0,83601.0,0.2289453]
[1744787469164,0.2154254,83602.0,83601.0,0.2289453]
[1744787477378,0.2154254,83602.0,83601.0,0.2614453]
[1744787478372,0.2154254,83602.0,83601.0,0.2289453]
[1744787489477,0.2154254,83602.0,83601.0,0.2591453]
[1744787500890,0.2154254,83602.0,83601.0,0.10932]
[1744787501191,0.2154254,83602.0,83584.0,0.18258062]
[1744787501192,0.1196353,83594.0,83584.0,0.18258062]
[1744787501380,0.1196353,83594.0,83593.0,0.07833944]
[1744787501579,0.2167353,83594.0,83593.0,0.07833944]
[1744787501882,0.2167353,83594.0,83593.0,0.07841944]
[1744787502381,0.5775353,83594.0,83593.0,0.07841944]
[1744787502693,0.5775353,83594.0,83584.0,0.18258062]
[1744787502694,0.1196482,83585.0,83584.0,0.18258062]
[1744787502997,0.4804482,83585.0,83584.0,0.18258062]
[1744787503289,0.5762482,83585.0,83584.0,0.18258062]
[1744787503488,0.5762482,83585.0,83584.0,8e-05]
[1744787504084,0.1196496,83584.0,83583.0,0.18258062]
[1744787504493,0.1836496,83584.0,83583.0,0.18258062]
[1744787504685,0.1836496,83584.0,83583.0,0.30223172]
[1744787504879,0.1836496,83584.0,83583.0,0.33453172]
[1744787505291,0.1856496,83584.0,83583.0,0.33553172]
[1744787505497,0.0598194,83592.0,83591.0,0.1794579]
[1744787505683,0.36097944,83593.0,83591.0,0.1794579]
[1744787505684,0.00017944,83593.0,83592.0,0.1196382]
[1744787505887,0.00017944,83593.0,83592.0,0.2163382]
[1744787506695,0.1794266,83607.0,83606.0,0.1196182]
[1744787506898,0.1794266,83607.0,83606.0,0.1977782]
[1744787507092,0.1794266,83607.0,83606.0,0.2945782]
[1744787507292,0.1795066,83607.0,83606.0,0.2945782]
[1744787508397,0.1815066,83607.0,83606.0,0.2975782]
[1744787510095,0.1825066,83607.0,83606.0,0.2975782]
[1744787510492,0.2147066,83607.0,83606.0,0.2975782]
[1744787510797,0.2469066,83607.0,83606.0,0.2647782]
[1744787513995,0.6077066,83607.0,83606.0,0.2647782]
[1744787517505,0.2469066,83607.0,83606.0,0.2647782]
[1744787518108,0.6077066,83607.0,83606.0,0.2647782]
[1744787518806,0.6077066,83607.0,83606.0,0.2339782]
[1744787522713,0.6077066,83607.0,83606.0,0.2644782]
[1744787525915,0.5755066,83607.0,83606.0,0.2644782]
[1744787526116,0.5755066,83607.0,83606.0,0.2947782]
[1744787530017,0.5755066,83607.0,83606.0,0.2644782]
[1744787531311,0.5755066,83607.0,83606.0,0.2972782]
[1744787531709,0.5755066,83607.0,83606.0,0.0362]
[1744787531914,0.6064066,83607.0,83606.0,0.2338582]
[1744787532818,0.6064066,83607.0,83606.0,0.0362]
[1744787533022,0.6064066,83607.0,83606.0,0.08104]
[1744787533222,0.6064066,83607.0,83606.0,0.08112]
[1744787534822,0.6064066,83607.0,83606.0,0.2007382]
[1744787535021,0.6064066,83607.0,83606.0,0.2319382]
[1744787535223,0.6064066,83607.0,83606.0,0.2623382]
[1744787536225,0.5754266,83607.0,83606.0,0.2623382]
[1744787536418,0.0598072,83609.0,83608.0,0.1196153]
[1744787536613,0.1794182,83611.0,83610.0,0.1794172]
[1744787537018,0.17956401,83611.0,83610.0,0.1794172]
[1744787537223,0.1794182,83611.0,83610.0,0.22207251]
[1744787537521,0.1794982,83611.0,83610.0,0.22207251]
[1744787537911,0.1804982,83611.0,83610.0,0.22507251]
[1744787538320,0.1804182,83611.0,83610.0,0.22507251]
[1744787538519,0.1804982,83611.0,83610.0,0.22507251]
[1744787538719,0.1814982,83611.0,83610.0,0.22507251]
[1744787539128,0.1814182,83611.0,83610.0,0.22507251]
[1744787539315,0.1814982,83611.0,83610.0,0.22507251]
[1744787539512,0.05994731,83617.0,83613.0,0.059804]
[1744787539513,0.00014581,83617.0,83613.0,0.059804]
[1744787539719,0.179395,83622.0,83618.0,0.0598001]
[1744787539918,0.1195979,83622.0,83621.0,0.1195953]
[1744787540318,0.1196779,83622.0,83621.0,0.1195953]
[1744787540518,8e-05,83622.0,83621.0,0.1195953]
[1744787540828,0.4803947,83623.0,83622.0,0.1195953]
[1744787542023,0.4803947,83623.0,83622.0,0.1825953]
[1744787543325,0.1205947,83623.0,83622.0,0.1865953]
[1744787543919,0.001,83623.0,83622.0,0.1875953]
[1744787544115,0.1205938,83623.0,83622.0,0.19647724]
[1744787544931,0.1205938,83623.0,83622.0,0.27451724]
[1744787545121,0.1835938,83623.0,83622.0,0.27451724]
[1744787545925,0.18416759,83623.0,83622.0,0.27451724]
[1744787548632,0.18416759,83623.0,83622.0,0.19647724]
[1744787548827,0.18416759,83623.0,83622.0,0.27451724]
[1744787549733,0.18416759,83623.0,83622.0,0.12422194]
[1744787549919,0.1835938,83623.0,83622.0,0.12422194]
[1744787550123,0.1835938,83623.0,83622.0,0.24381724]
[1744787550322,0.18416759,83623.0,83622.0,0.24381724]
[1744787550825,0.18416759,83623.0,83622.0,0.12422194]
[1744787551025,0.18416759,83623.0,83622.0,0.24381724]
[1744787552631,0.18416759,83623.0,83622.0,0.12422194]
[1744787552832,0.18416759,83623.0,83622.0,0.24381724]
[1744787553633,0.18416759,83623.0,83622.0,0.04618194]
[1744787553825,0.18416759,83623.0,83622.0,0.12422194]
[1744787554225,0.18416759,83623.0,83622.0,0.24381724]
[1744787554934,0.1835938,83623.0,83622.0,0.24381724]
[1744787555425,0.18416759,83623.0,83622.0,0.24381724]
[1744787557225,0.18416759,83623.0,83622.0,0.12422194]
[1744787558234,0.54496759,83623.0,83622.0,0.12422194]
[1744787559638,0.54496759,83623.0,83622.0,0.24381724]
[1744787559938,0.5443938,83623.0,83622.0,0.24381724]
[1744787560440,0.5443938,83623.0,83622.0,0.12422194]
[1744787560441,0.54496759,83623.0,83622.0,0.12422194]
[1744787562939,0.54496759,83623.0,83622.0,0.24381724]
[1744787563148,0.54496759,83623.0,83622.0,0.27681724]
[1744787563344,0.54496759,83623.0,83622.0,0.30771724]
[1744787563837,0.54496759,83623.0,83622.0,0.30763724]
[1744787565144,0.48196759,83623.0,83622.0,0.30763724]
[1744787565337,0.36237379,83623.0,83622.0,0.30763724]
[1744787565744,0.36245379,83623.0,83622.0,0.30763724]
[1744787567243,0.48204759,83623.0,83622.0,0.30763724]
[1744787569845,0.57604759,83623.0,83622.0,0.19877724]
[1744787570045,0.57604759,83623.0,83622.0,0.27673724]
[1744787572755,0.54584759,83623.0,83622.0,0.27673724]
[1744787572957,0.51364759,83623.0,83622.0,0.27673724]
[1744787575959,0.15284759,83623.0,83622.0,0.27673724]
[1744787576554,0.15284759,83623.0,83622.0,0.30843724]
[1744787576755,0.12124759,83623.0,83622.0,0.30843724]
[1744787578856,0.18634759,83623.0,83622.0,0.30843724]
[1744787583465,0.21814759,83623.0,83622.0,0.30843724]
[1744787583663,0.21814759,83623.0,83622.0,0.12414194]
[1744787583664,0.18634759,83623.0,83622.0,0.12414194]
[1744787583864,0.21814759,83623.0,83622.0,0.12414194]
[1744787584666,0.21814759,83623.0,83622.0,0.04618194]
[1744787584863,0.21814759,83623.0,83622.0,0.12414194]
[1744787586763,0.57894759,83623.0,83622.0,0.12414194]
[1744787587160,0.57894759,83623.0,83622.0,0.24373724]
[1744787587366,0.21814759,83623.0,83622.0,0.24373724]
[1744787587566,0.57894759,83623.0,83622.0,0.24373724]
[1744787587768,0.57894759,83623.0,83622.0,0.16577724]
[1744787587968,0.57894759,83623.0,83622.0,0.24373724]
[1744787588665,0.51466759,83623.0,83622.0,0.27643724]
[1744787588967,0.51474759,83623.0,83622.0,0.30783724]
[1744787589162,0.51466759,83623.0,83622.0,0.30783724]
[1744787589873,0.51474759,83623.0,83622.0,0.30783724]
[1744787590973,0.54524759,83623.0,83622.0,0.30783724]
[1744787591372,0.54524759,83623.0,83622.0,0.27643724]
[1744787592068,0.54524759,83623.0,83622.0,0.15684194]
[1744787592371,0.54524759,83623.0,83622.0,0.09184194]
[1744787592567,0.54524759,83623.0,83622.0,0.09180194]
[1744787593265,0.54524759,83623.0,83622.0,0.21139724]
[1744787593769,0.54524759,83623.0,83622.0,0.09180194]
[1744787594674,0.54524759,83623.0,83622.0,0.12380194]
[1744787595776,0.18444759,83623.0,83622.0,0.24339724]
[1744787595974,0.54524759,83623.0,83622.0,0.24339724]
[1744787597171,0.18444759,83623.0,83622.0,0.24339724]
[1744787597473,0.54524759,83623.0,83622.0,0.24339724]
[1744787598377,0.54524759,83623.0,83622.0,0.27479724]
[1744787599478,0.54524759,83623.0,83622.0,0.24339724]
[1744787599880,0.54524759,83623.0,83622.0,0.12380194]
[1744787600582,0.54524759,83623.0,83622.0,0.24339724]
[1744787600885,0.54524759,83623.0,83622.0,0.12380194]
[1744787601871,0.1196067,83614.0,83613.0,0.01614982]
[1744787602073,0.4804067,83614.0,83613.0,0.09406982]
[1744787602376,0.4804067,83614.0,83613.0,0.09414982]
[1744787602574,0.5427067,83614.0,83613.0,0.09414982]
[1744787602966,0.5437067,83614.0,83613.0,0.09514982]
[1744787603172,0.5758067,83614.0,83613.0,0.09514982]
[1744787603665,0.5768067,83614.0,83613.0,0.10903903]
[1744787606278,0.5768067,83614.0,83613.0,0.10895903]
[1744787606577,0.5768067,83614.0,83613.0,0.10903903]
[1744787606888,0.2160067,83614.0,83613.0,0.10903903]
[1744787607086,0.5768067,83614.0,83613.0,0.10903903]
[1744787614995,0.4824067,83614.0,83613.0,0.10903903]
[1744787615192,0.1216067,83614.0,83613.0,0.22864713]
[1744787615387,0.1216867,83614.0,83613.0,0.29194713]
[1744787615694,0.1216067,83614.0,83613.0,0.29194713]
[1744787615893,0.1216867,83614.0,83613.0,0.29194713]
[1744787620686,0.1216867,83614.0,83613.0,0.17233903]
[1744787620993,0.2166867,83614.0,83613.0,0.13963903]
[1744787621291,0.1196182,83606.0,83605.0,0.07792]
[1744787621491,0.4804182,83606.0,83605.0,0.07792]
[1744787621795,0.5442182,83606.0,83605.0,0.07792]
[1744787622388,0.5452182,83606.0,83605.0,0.07792]
[1744787622897,0.5452182,83606.0,83605.0,0.078]
[1744787623288,0.5472182,83606.0,83605.0,0.078]
[1744787624588,0.0598117,83603.0,83599.0,0.07788]
[1744787624901,0.1196267,83600.0,83599.0,0.07788]
[1744787625400,0.1818267,83600.0,83599.0,0.07788]
[1744787627088,0.2392821,83590.0,83589.0,0.07788]
[1744787627293,0.6000821,83590.0,83589.0,0.07788]
[1744787627794,0.6000821,83590.0,83589.0,0.20634941]
[1744787627994,0.542641,83590.0,83589.0,0.11700691]
[1744787628297,0.543641,83590.0,83589.0,0.23664941]
[1744787628488,0.545641,83590.0,83589.0,0.23664941]
[1744787628688,0.515441,83590.0,83589.0,0.26844941]
[1744787629089,0.3958,83590.0,83589.0,0.26844941]
[1744787629294,0.003,83590.0,83589.0,0.26844941]
[1744787630497,0.3608,83597.0,83596.0,0.1196325]
[1744787630897,0.3608,83597.0,83596.0,0.2166325]
[1744787631902,0.3618,83597.0,83596.0,0.2166325]
[1744787633101,0.3638,83597.0,83596.0,0.2166325]
[1744787634594,0.483431,83597.0,83596.0,0.2166325]
[1744787634795,0.3638,83597.0,83596.0,0.2166325]
[1744787639310,0.396,83597.0,83596.0,0.2166325]
[1744787642116,0.515631,83597.0,83596.0,0.2166325]
[1744787642413,0.1794523,83595.0,83594.0,0.119634]
[1744787642613,0.1794523,83595.0,83594.0,0.230814]
[1744787643113,0.2118523,83595.0,83594.0,0.230814]
[1744787643505,0.092217,83595.0,83594.0,0.230814]
[1744787643705,0.094217,83595.0,83594.0,0.264014]
[1744787644401,0.095217,83595.0,83594.0,0.264014]
[1744787657629,0.0354,83595.0,83594.0,0.264014]
[1744787657931,0.003,83595.0,83594.0,0.264014]
[1744787660720,0.3608,83607.0,83606.0,0.1196182]
[1744787661024,0.3608,83607.0,83606.0,0.1974182]
[1744787661423,0.36088,83607.0,83606.0,0.1974182]
[1744787661723,0.36088,83607.0,83606.0,0.2291182]
[1744787662124,0.3618,83607.0,83606.0,0.2622182]
[1744787662325,0.3941,83607.0,83606.0,0.2622182]
[1744787662632,0.39418,83607.0,83606.0,0.2622182]
[1744787663227,0.39618,83607.0,83606.0,0.2632182]
[1744787665029,0.39618,83607.0,83606.0,0.2757163]
[1744787666726,0.5157967,83607.0,83606.0,0.2119163]
[1744787666932,0.5784967,83607.0,83606.0,0.1216182]
[1744787667228,0.5784967,83607.0,83606.0,0.1994182]
[1744787667622,0.5784967,83607.0,83606.0,0.1516182]
[1744787667822,0.5784967,83607.0,83606.0,0.2294182]
[1744787668333,0.5784967,83607.0,83606.0,0.2617182]
[1744787668828,0.5784967,83607.0,83606.0,0.27397464]
[1744787669029,0.5784967,83607.0,83606.0,0.2617182]
[1744787669730,0.5477967,83607.0,83606.0,0.2617182]
[1744787672134,0.42818,83607.0,83606.0,0.27417541]
[1744787672531,0.5477967,83607.0,83606.0,0.27417541]
[1744787673128,0.42818,83607.0,83606.0,0.27417541]
[1744787673324,0.39618,83607.0,83606.0,0.27417541]
[1744787673722,0.03538,83607.0,83606.0,0.27417541]
[1744787674128,0.003,83607.0,83606.0,0.27417541]
[1744787674431,0.00308,83607.0,83606.0,0.27417541]
[1744787675229,0.03348,83607.0,83606.0,0.27417541]
[1744787680338,0.03348,83607.0,83606.0,0.21187541]